[Event "Titled Tuesday Blitz October 11 Early 2022"]
[White "Manon-og, Ramon Jr."]
[Black "Ovezdurdyyeva, Jemal"]
[WhiteFideId "5200776"]
[BlackFideId "14001888"]
[WhiteElo "2242"]
[BlackElo "1961"]
[Result "1-0"]
[Round "10"]
[TimeControl "180+1"]
[Date "2022.10.12"]
[WhiteClock "0:00:19"]
[BlackClock "0:00:12"]

1. e4 {[%clk 0:02:56]}  d6 {[%clk 0:02:59]} 2. d4 {[%clk 0:02:56]}  Nf6 {[%clk 0:02:59]} 3. Nc3 {[%clk 0:02:56]}  g6 {[%clk 0:03:00]} 4. Nf3 {[%clk 0:02:56]}  c6 {[%clk 0:02:59]} 5. h3 {[%clk 0:02:55]}  Bg7 {[%clk 0:02:59]} 6. Bc4 {[%clk 0:02:54]}  b5 {[%clk 0:02:59]} 7. Bd3 {[%clk 0:02:54]}  O-O {[%clk 0:02:56]} 8. O-O {[%clk 0:02:54]}  a6 {[%clk 0:02:54]} 9. Bg5 {[%clk 0:02:53]}  Nbd7 {[%clk 0:02:54]} 10. e5 {[%clk 0:02:51]}  dxe5 {[%clk 0:02:54]} 11. dxe5 {[%clk 0:02:52]}  Nd5 {[%clk 0:02:54]} 12. Nxd5 {[%clk 0:02:48]}  cxd5 {[%clk 0:02:55]} 13. Re1 {[%clk 0:02:44]}  Nc5 {[%clk 0:02:47]} 14. Bf1 {[%clk 0:02:38]}  Ne4 {[%clk 0:02:37]} 15. Bf4 {[%clk 0:02:37]}  Bf5 {[%clk 0:02:28]} 16. c3 {[%clk 0:02:36]}  Qd7 {[%clk 0:02:20]} 17. Nd4 {[%clk 0:02:27]}  Rad8 {[%clk 0:02:14]} 18. f3 {[%clk 0:02:18]}  Nc5 {[%clk 0:02:09]} 19. Qd2 {[%clk 0:01:56]}  Ne6 {[%clk 0:01:52]} 20. Nxf5 {[%clk 0:01:54]}  gxf5 {[%clk 0:01:41]} 21. Bg3 {[%clk 0:01:51]}  h6 {[%clk 0:01:27]} 22. Rad1 {[%clk 0:01:50]}  Ng5 {[%clk 0:01:26]} 23. Bh4 {[%clk 0:01:45]}  f6 {[%clk 0:01:16]} 24. Qe3 {[%clk 0:01:16]}  fxe5 {[%clk 0:01:04]} 25. Bxg5 {[%clk 0:01:14]}  hxg5 {[%clk 0:01:01]} 26. Qxg5 {[%clk 0:01:15]}  Qe6 {[%clk 0:00:57]} 27. Bd3 {[%clk 0:00:54]}  e4 {[%clk 0:00:49]} 28. Bc2 {[%clk 0:00:50]}  Rd6 {[%clk 0:00:34]} 29. Bb3 {[%clk 0:00:47]}  Qe5 {[%clk 0:00:18]} 30. Rxe4 {[%clk 0:00:39]}  fxe4 {[%clk 0:00:13]} 31. Qg4 {[%clk 0:00:29]}  exf3 {[%clk 0:00:13]} 32. gxf3 {[%clk 0:00:30]}  e6 {[%clk 0:00:12]} 33. Rf1 {[%clk 0:00:22]}  Qe4 {[%clk 0:00:12]} 34. fxe4 {[%clk 0:00:20]}  dxe4 {[%clk 0:00:12]} 35. Bxe6+ {[%clk 0:00:19]} 1-0


[Site "https://www.chess.com"]

[Event "Titled Tuesday Blitz October 11 Early 2022"]
[White "Martin Carmona, Gaston Manuel"]
[Black "Sargsyan, Anna M."]
[WhiteFideId "22284567"]
[BlackFideId "13308130"]
[WhiteElo "2235"]
[BlackElo "2284"]
[Result "0-1"]
[Round "10"]
[TimeControl "180+1"]
[Date "2022.10.12"]
[WhiteClock "0:00:12"]
[BlackClock "0:02:13"]

1. d4 {[%clk 0:03:00]}  d5 {[%clk 0:02:59]} 2. c4 {[%clk 0:02:59]}  c6 {[%clk 0:02:59]} 3. Nf3 {[%clk 0:02:59]}  Nf6 {[%clk 0:03:00]} 4. Nc3 {[%clk 0:03:00]}  dxc4 {[%clk 0:03:00]} 5. a4 {[%clk 0:02:59]}  Bf5 {[%clk 0:03:00]} 6. Ne5 {[%clk 0:02:59]}  Nbd7 {[%clk 0:03:00]} 7. Nxc4 {[%clk 0:02:59]}  Qc7 {[%clk 0:03:01]} 8. g3 {[%clk 0:02:59]}  e5 {[%clk 0:03:01]} 9. dxe5 {[%clk 0:03:00]}  Nxe5 {[%clk 0:03:01]} 10. Bf4 {[%clk 0:02:57]}  Nfd7 {[%clk 0:03:02]} 11. Bg2 {[%clk 0:02:57]}  g5 {[%clk 0:03:01]} 12. Bxe5 {[%clk 0:02:57]}  Nxe5 {[%clk 0:03:01]} 13. Qd4 {[%clk 0:02:58]}  f6 {[%clk 0:03:01]} 14. Ne3 {[%clk 0:02:58]}  Bg6 {[%clk 0:02:54]} 15. O-O {[%clk 0:02:49]}  Bg7 {[%clk 0:02:48]} 16. f4 {[%clk 0:02:11]}  gxf4 {[%clk 0:02:46]} 17. gxf4 {[%clk 0:02:12]}  Nd7 {[%clk 0:02:46]} 18. f5 {[%clk 0:02:12]}  Bf7 {[%clk 0:02:45]} 19. Ne4 {[%clk 0:01:51]}  O-O {[%clk 0:02:42]} 20. Nd6 {[%clk 0:01:50]}  Ne5 {[%clk 0:02:38]} 21. Nxf7 {[%clk 0:01:47]}  Rxf7 {[%clk 0:02:37]} 22. a5 {[%clk 0:01:46]}  Rd8 {[%clk 0:02:35]} 23. Qf4 {[%clk 0:01:45]}  Rfd7 {[%clk 0:02:32]} 24. Nc4 {[%clk 0:01:29]}  Rd4 {[%clk 0:02:32]} 25. Qg3 {[%clk 0:00:56]}  Rxc4 {[%clk 0:02:32]} 26. Qb3 {[%clk 0:00:57]}  Kh8 {[%clk 0:02:31]} 27. a6 {[%clk 0:00:57]}  b6 {[%clk 0:02:31]} 28. Rac1 {[%clk 0:00:57]}  Rxc1 {[%clk 0:02:30]} 29. Rxc1 {[%clk 0:00:58]}  c5 {[%clk 0:02:31]} 30. Qe6 {[%clk 0:00:58]}  Qd7 {[%clk 0:02:31]} 31. Qb3 {[%clk 0:00:58]}  Bh6 {[%clk 0:02:28]} 32. Rf1 {[%clk 0:00:57]}  Ng4 {[%clk 0:02:28]} 33. Qg3 {[%clk 0:00:46]}  Rg8 {[%clk 0:02:28]} 34. Qh4 {[%clk 0:00:37]}  Qd4+ {[%clk 0:02:27]} 35. Kh1 {[%clk 0:00:36]}  Bg5 {[%clk 0:02:25]} 36. Qg3 {[%clk 0:00:28]}  Be3 {[%clk 0:02:23]} 37. Qf3 {[%clk 0:00:19]}  Nf2+ {[%clk 0:02:21]} 38. Kg1 {[%clk 0:00:19]}  Ng4+ {[%clk 0:02:13]} 39. Kh1 {[%clk 0:00:19]}  Qe5 {[%clk 0:02:13]} 40. Qg3 {[%clk 0:00:12]}  Nf2+ {[%clk 0:02:13]} 0-1


[Site "https://www.chess.com"]

[Event "Titled Tuesday Blitz October 11 Early 2022"]
[White "Matveeva, Olga"]
[Black "Rosh Jain"]
[WhiteFideId "24107018"]
[BlackFideId "25789465"]
[WhiteElo "2055"]
[BlackElo "2233"]
[Result "1-0"]
[Round "10"]
[TimeControl "180+1"]
[Date "2022.10.12"]
[WhiteClock "0:00:54"]
[BlackClock "0:00:11"]

1. d4 {[%clk 0:03:00]}  Nf6 {[%clk 0:02:53]} 2. c4 {[%clk 0:03:01]}  e6 {[%clk 0:02:48]} 3. g3 {[%clk 0:03:01]}  d5 {[%clk 0:02:43]} 4. Nf3 {[%clk 0:03:00]}  dxc4 {[%clk 0:02:42]} 5. Bg2 {[%clk 0:03:00]}  Nc6 {[%clk 0:02:41]} 6. O-O {[%clk 0:02:54]}  Be7 {[%clk 0:02:39]} 7. e3 {[%clk 0:02:51]}  O-O {[%clk 0:02:38]} 8. Nbd2 {[%clk 0:02:44]}  Na5 {[%clk 0:02:15]} 9. Qc2 {[%clk 0:02:42]}  b6 {[%clk 0:01:57]} 10. Nxc4 {[%clk 0:02:38]}  Nxc4 {[%clk 0:01:35]} 11. Qxc4 {[%clk 0:02:39]}  a5 {[%clk 0:01:33]} 12. Ne5 {[%clk 0:02:36]}  Ba6 {[%clk 0:01:32]} 13. Qc2 {[%clk 0:02:27]}  Bxf1 {[%clk 0:01:27]} 14. Nc6 {[%clk 0:02:18]}  Qd7 {[%clk 0:01:17]} 15. Nxe7+ {[%clk 0:02:17]}  Qxe7 {[%clk 0:01:16]} 16. Bxa8 {[%clk 0:02:16]}  Rxa8 {[%clk 0:01:09]} 17. Kxf1 {[%clk 0:02:16]}  e5 {[%clk 0:01:09]} 18. dxe5 {[%clk 0:02:04]}  Qxe5 {[%clk 0:01:08]} 19. Bd2 {[%clk 0:02:03]}  Rd8 {[%clk 0:00:59]} 20. Bc3 {[%clk 0:01:55]}  Qd5 {[%clk 0:00:55]} 21. Bxf6 {[%clk 0:01:44]}  Qh1+ {[%clk 0:00:54]} 22. Ke2 {[%clk 0:01:43]}  Qxa1 {[%clk 0:00:55]} 23. Bxd8 {[%clk 0:01:42]}  Qxa2 {[%clk 0:00:48]} 24. Bxc7 {[%clk 0:01:40]}  Qe6 {[%clk 0:00:47]} 25. Bxb6 {[%clk 0:01:34]}  h6 {[%clk 0:00:43]} 26. Bd4 {[%clk 0:01:30]}  Qg4+ {[%clk 0:00:36]} 27. Kf1 {[%clk 0:01:22]}  Qf3 {[%clk 0:00:33]} 28. Kg1 {[%clk 0:01:21]}  Qb7 {[%clk 0:00:29]} 29. h4 {[%clk 0:01:19]}  g6 {[%clk 0:00:25]} 30. Bc3 {[%clk 0:01:17]}  Qd5 {[%clk 0:00:19]} 31. Qd2 {[%clk 0:01:15]}  Qxd2 {[%clk 0:00:15]} 32. Bxd2 {[%clk 0:01:15]}  a4 {[%clk 0:00:14]} 33. Kf1 {[%clk 0:01:15]}  h5 {[%clk 0:00:13]} 34. Ke2 {[%clk 0:01:15]}  f5 {[%clk 0:00:13]} 35. Kd3 {[%clk 0:01:15]}  Kf7 {[%clk 0:00:14]} 36. Kc4 {[%clk 0:01:15]}  Ke6 {[%clk 0:00:15]} 37. Kb4 {[%clk 0:01:15]}  Kd5 {[%clk 0:00:16]} 38. Kxa4 {[%clk 0:01:15]}  Ke4 {[%clk 0:00:17]} 39. b4 {[%clk 0:01:14]}  Kf3 {[%clk 0:00:17]} 40. b5 {[%clk 0:01:10]}  Kxf2 {[%clk 0:00:18]} 41. b6 {[%clk 0:01:08]}  Kxg3 {[%clk 0:00:19]} 42. Be1+ {[%clk 0:01:08]}  Kf3 {[%clk 0:00:17]} 43. b7 {[%clk 0:01:09]}  Kxe3 {[%clk 0:00:18]} 44. b8=Q {[%clk 0:01:09]}  Ke2 {[%clk 0:00:17]} 45. Qe5+ {[%clk 0:01:07]}  Kf1 {[%clk 0:00:16]} 46. Qg3 {[%clk 0:01:03]}  Ke2 {[%clk 0:00:14]} 47. Ba5 {[%clk 0:01:01]}  g5 {[%clk 0:00:12]} 48. hxg5 {[%clk 0:01:01]}  h4 {[%clk 0:00:11]} 49. Qxh4 {[%clk 0:01:00]}  f4 {[%clk 0:00:11]} 50. Qxf4 {[%clk 0:01:00]}  Kd3 {[%clk 0:00:10]} 51. Bb6 {[%clk 0:00:57]}  Ke2 {[%clk 0:00:11]} 52. Qe3+ {[%clk 0:00:56]}  Kd1 {[%clk 0:00:10]} 53. Qf2 {[%clk 0:00:56]}  Kc1 {[%clk 0:00:10]} 54. Bd4 {[%clk 0:00:54]}  Kb1 {[%clk 0:00:11]} 55. Qb2# {[%clk 0:00:54]} 1-0


[Site "https://www.chess.com"]

[Event "Titled Tuesday Blitz October 11 Early 2022"]
[White "Mikhailovsky, Vladimir"]
[Black "Stribuk, Artiom"]
[WhiteFideId "34105414"]
[BlackFideId "13515659"]
[WhiteElo "2297"]
[BlackElo "2279"]
[Result "0-1"]
[Round "10"]
[TimeControl "180+1"]
[Date "2022.10.11"]
[WhiteClock "0:00:06"]
[BlackClock "0:00:14"]

1. e4 {[%clk 0:03:00]}  c5 {[%clk 0:02:59]} 2. c3 {[%clk 0:02:59]}  Nf6 {[%clk 0:02:57]} 3. e5 {[%clk 0:02:59]}  Nd5 {[%clk 0:02:58]} 4. d4 {[%clk 0:02:59]}  cxd4 {[%clk 0:02:59]} 5. Nf3 {[%clk 0:03:00]}  d6 {[%clk 0:02:59]} 6. Bc4 {[%clk 0:03:00]}  e6 {[%clk 0:02:59]} 7. O-O {[%clk 0:02:57]}  Be7 {[%clk 0:02:59]} 8. cxd4 {[%clk 0:02:57]}  O-O {[%clk 0:02:55]} 9. Bd2 {[%clk 0:02:57]}  Bd7 {[%clk 0:02:16]} 10. Nc3 {[%clk 0:02:57]}  Nxc3 {[%clk 0:02:15]} 11. Bxc3 {[%clk 0:02:56]}  Bc6 {[%clk 0:02:16]} 12. Qe2 {[%clk 0:02:13]}  Bxf3 {[%clk 0:01:34]} 13. Qxf3 {[%clk 0:02:10]}  d5 {[%clk 0:01:35]} 14. Bd3 {[%clk 0:02:08]}  Nc6 {[%clk 0:01:35]} 15. Rfd1 {[%clk 0:02:06]}  Rc8 {[%clk 0:01:27]} 16. Qe3 {[%clk 0:02:01]}  Bb4 {[%clk 0:01:10]} 17. Rac1 {[%clk 0:01:58]}  Qb6 {[%clk 0:01:07]} 18. Bb1 {[%clk 0:01:51]}  Bxc3 {[%clk 0:01:01]} 19. Qxc3 {[%clk 0:01:44]}  g6 {[%clk 0:00:57]} 20. Qd2 {[%clk 0:01:35]}  Nxd4 {[%clk 0:00:50]} 21. h4 {[%clk 0:01:18]}  Rxc1 {[%clk 0:00:32]} 22. Rxc1 {[%clk 0:01:18]}  Nc6 {[%clk 0:00:32]} 23. Re1 {[%clk 0:00:56]}  Qd4 {[%clk 0:00:32]} 24. Qg5 {[%clk 0:00:56]}  f6 {[%clk 0:00:21]} 25. exf6 {[%clk 0:00:48]}  Qxf6 {[%clk 0:00:21]} 26. Qg3 {[%clk 0:00:37]}  e5 {[%clk 0:00:18]} 27. h5 {[%clk 0:00:38]}  Kg7 {[%clk 0:00:16]} 28. hxg6 {[%clk 0:00:37]}  hxg6 {[%clk 0:00:17]} 29. Rd1 {[%clk 0:00:36]}  Nd4 {[%clk 0:00:17]} 30. Qe3 {[%clk 0:00:33]}  Qf4 {[%clk 0:00:14]} 31. Qe1 {[%clk 0:00:19]}  Rh8 {[%clk 0:00:13]} 32. g3 {[%clk 0:00:07]}  Nf3+ {[%clk 0:00:13]} 33. Kg2 {[%clk 0:00:07]}  Rh2+ {[%clk 0:00:13]} 34. Kf1 {[%clk 0:00:07]}  Rh1+ {[%clk 0:00:14]} 35. Kg2 {[%clk 0:00:07]}  Rxe1 {[%clk 0:00:14]} 36. gxf4 {[%clk 0:00:06]}  Rxd1 {[%clk 0:00:14]} 0-1


[Site "https://www.chess.com"]

[Event "Titled Tuesday Blitz October 11 Early 2022"]
[White "Mills, Morgen"]
[Black "Ismayil, Malak"]
[WhiteFideId "2013304"]
[BlackFideId "13412604"]
[WhiteElo "2196"]
[BlackElo "1879"]
[Result "1-0"]
[Round "10"]
[TimeControl "180+1"]
[Date "2022.10.12"]
[WhiteClock "0:00:22"]
[BlackClock "0:00:08"]

1. e4 {[%clk 0:03:00]}  e5 {[%clk 0:02:59]} 2. Nf3 {[%clk 0:03:01]}  Nc6 {[%clk 0:02:48]} 3. Bb5 {[%clk 0:03:01]}  a6 {[%clk 0:02:47]} 4. Bxc6 {[%clk 0:03:01]}  dxc6 {[%clk 0:02:48]} 5. O-O {[%clk 0:03:02]}  Bd6 {[%clk 0:02:48]} 6. d4 {[%clk 0:03:00]}  Qe7 {[%clk 0:02:48]} 7. dxe5 {[%clk 0:02:55]}  Bxe5 {[%clk 0:02:49]} 8. Nxe5 {[%clk 0:02:55]}  Qxe5 {[%clk 0:02:49]} 9. Nc3 {[%clk 0:02:56]}  Nf6 {[%clk 0:02:48]} 10. Qf3 {[%clk 0:02:48]}  O-O {[%clk 0:02:46]} 11. Bf4 {[%clk 0:02:47]}  Qe7 {[%clk 0:02:42]} 12. h3 {[%clk 0:02:46]}  h6 {[%clk 0:02:42]} 13. Rfe1 {[%clk 0:02:45]}  Be6 {[%clk 0:02:42]} 14. Be5 {[%clk 0:02:33]}  Nd7 {[%clk 0:02:39]} 15. Bxc7 {[%clk 0:02:32]}  Rac8 {[%clk 0:02:30]} 16. Qg3 {[%clk 0:02:30]}  Rfe8 {[%clk 0:02:24]} 17. Bd6 {[%clk 0:02:30]}  Qf6 {[%clk 0:02:18]} 18. e5 {[%clk 0:02:31]}  Qf5 {[%clk 0:02:16]} 19. Ne4 {[%clk 0:02:29]}  Bd5 {[%clk 0:02:10]} 20. Nc3 {[%clk 0:02:05]}  Qxc2 {[%clk 0:01:57]} 21. Re2 {[%clk 0:02:05]}  Qf5 {[%clk 0:01:56]} 22. Nxd5 {[%clk 0:01:59]}  cxd5 {[%clk 0:01:22]} 23. Rd1 {[%clk 0:01:56]}  Nb6 {[%clk 0:01:17]} 24. b3 {[%clk 0:01:51]}  Rc2 {[%clk 0:00:53]} 25. Qe3 {[%clk 0:01:42]}  Rxe2 {[%clk 0:00:46]} 26. Qxe2 {[%clk 0:01:41]}  Nd7 {[%clk 0:00:33]} 27. Rxd5 {[%clk 0:01:38]}  Qe6 {[%clk 0:00:21]} 28. Qd2 {[%clk 0:01:31]}  Rc8 {[%clk 0:00:16]} 29. f4 {[%clk 0:01:26]}  Qf5 {[%clk 0:00:13]} 30. Rd3 {[%clk 0:01:25]}  Nb6 {[%clk 0:00:07]} 31. Kh2 {[%clk 0:01:18]}  Rc6 {[%clk 0:00:06]} 32. Rc3 {[%clk 0:01:17]}  Rxc3 {[%clk 0:00:05]} 33. Qxc3 {[%clk 0:01:18]}  Qxf4+ {[%clk 0:00:05]} 34. Qg3 {[%clk 0:01:16]}  Qxg3+ {[%clk 0:00:05]} 35. Kxg3 {[%clk 0:01:17]}  Nd5 {[%clk 0:00:04]} 36. Kf3 {[%clk 0:01:13]}  Nc3 {[%clk 0:00:05]} 37. a3 {[%clk 0:01:12]}  Nb1 {[%clk 0:00:05]} 38. Ke3 {[%clk 0:01:09]}  Nc3 {[%clk 0:00:05]} 39. Kd3 {[%clk 0:01:04]}  Nd5 {[%clk 0:00:05]} 40. g3 {[%clk 0:01:00]}  Nb6 {[%clk 0:00:05]} 41. Kd4 {[%clk 0:00:59]}  Nd7 {[%clk 0:00:04]} 42. Kd5 {[%clk 0:00:56]}  Kh7 {[%clk 0:00:04]} 43. Bc7 {[%clk 0:00:51]}  Kg6 {[%clk 0:00:04]} 44. Kd6 {[%clk 0:00:50]}  Nf8 {[%clk 0:00:04]} 45. g4 {[%clk 0:00:47]}  Ne6 {[%clk 0:00:05]} 46. Bb6 {[%clk 0:00:47]}  Kg5 {[%clk 0:00:04]} 47. Bf2 {[%clk 0:00:42]}  Nf4 {[%clk 0:00:03]} 48. Be3 {[%clk 0:00:37]}  h5 {[%clk 0:00:02]} 49. gxh5 {[%clk 0:00:36]}  Kf5 {[%clk 0:00:02]} 50. Bxf4 {[%clk 0:00:35]}  Kxf4 {[%clk 0:00:03]} 51. e6 {[%clk 0:00:34]}  fxe6 {[%clk 0:00:02]} 52. Kxe6 {[%clk 0:00:35]}  Kg5 {[%clk 0:00:03]} 53. Kf7 {[%clk 0:00:25]}  Kh6 {[%clk 0:00:04]} 54. a4 {[%clk 0:00:23]}  a5 {[%clk 0:00:04]} 55. Kg8 {[%clk 0:00:17]}  b6 {[%clk 0:00:04]} 56. Kf7 {[%clk 0:00:17]}  Kxh5 {[%clk 0:00:04]} 57. Kxg7 {[%clk 0:00:18]}  Kh4 {[%clk 0:00:04]} 58. Kf6 {[%clk 0:00:18]}  Kxh3 {[%clk 0:00:05]} 59. Ke6 {[%clk 0:00:19]}  Kg4 {[%clk 0:00:05]} 60. Kd6 {[%clk 0:00:19]}  Kf4 {[%clk 0:00:06]} 61. Kc6 {[%clk 0:00:20]}  Ke4 {[%clk 0:00:07]} 62. Kxb6 {[%clk 0:00:20]}  Kd4 {[%clk 0:00:08]} 63. Kxa5 {[%clk 0:00:20]}  Kc3 {[%clk 0:00:08]} 64. b4 {[%clk 0:00:21]}  Kc4 {[%clk 0:00:08]} 65. b5 {[%clk 0:00:22]} 1-0


[Site "https://www.chess.com"]

[Event "Titled Tuesday Blitz October 11 Early 2022"]
[White "Mrudul Dehankar"]
[Black "Petesch, Gabriel"]
[WhiteFideId "25096990"]
[BlackFideId "2032465"]
[WhiteElo "2068"]
[BlackElo "2374"]
[Result "1-0"]
[Round "10"]
[TimeControl "180+1"]
[Date "2022.10.12"]
[WhiteClock "0:00:40"]
[BlackClock "0:00:02"]

1. e4 {[%clk 0:03:00]}  c6 {[%clk 0:03:00]} 2. d4 {[%clk 0:03:00]}  e6 {[%clk 0:03:01]} 3. Nd2 {[%clk 0:03:01]}  Be7 {[%clk 0:03:02]} 4. Ngf3 {[%clk 0:03:01]}  Nf6 {[%clk 0:03:03]} 5. e5 {[%clk 0:03:01]}  Nd5 {[%clk 0:03:03]} 6. c4 {[%clk 0:03:01]}  Nc7 {[%clk 0:03:03]} 7. Ne4 {[%clk 0:02:56]}  d5 {[%clk 0:02:54]} 8. exd6 {[%clk 0:02:47]}  Bxd6 {[%clk 0:02:54]} 9. Nxd6+ {[%clk 0:02:38]}  Qxd6 {[%clk 0:02:55]} 10. Bd3 {[%clk 0:02:39]}  c5 {[%clk 0:02:53]} 11. Be3 {[%clk 0:02:34]}  cxd4 {[%clk 0:02:51]} 12. Bxd4 {[%clk 0:02:35]}  f6 {[%clk 0:02:44]} 13. O-O {[%clk 0:02:25]}  Nc6 {[%clk 0:02:44]} 14. Bc3 {[%clk 0:02:24]}  Qe7 {[%clk 0:02:41]} 15. Re1 {[%clk 0:02:22]}  e5 {[%clk 0:02:38]} 16. Nd2 {[%clk 0:02:14]}  Be6 {[%clk 0:02:36]} 17. Qa4 {[%clk 0:02:10]}  O-O {[%clk 0:02:27]} 18. b4 {[%clk 0:02:09]}  Rfd8 {[%clk 0:02:24]} 19. Be4 {[%clk 0:02:09]}  Bd7 {[%clk 0:02:12]} 20. b5 {[%clk 0:02:07]}  Ne6 {[%clk 0:00:34]} 21. bxc6 {[%clk 0:02:04]}  Bxc6 {[%clk 0:00:33]} 22. Bxc6 {[%clk 0:02:04]}  bxc6 {[%clk 0:00:34]} 23. Qxc6 {[%clk 0:01:58]}  Rac8 {[%clk 0:00:33]} 24. Qf3 {[%clk 0:01:54]}  Qa3 {[%clk 0:00:21]} 25. Ne4 {[%clk 0:01:21]}  Rxc4 {[%clk 0:00:19]} 26. Qg4 {[%clk 0:01:09]}  Nf4 {[%clk 0:00:10]} 27. Nxf6+ {[%clk 0:01:05]}  Kh8 {[%clk 0:00:10]} 28. Bxe5 {[%clk 0:01:01]}  Nd5 {[%clk 0:00:05]} 29. Qxc4 {[%clk 0:00:58]}  Nxf6 {[%clk 0:00:05]} 30. Bxf6 {[%clk 0:00:57]}  gxf6 {[%clk 0:00:06]} 31. Rad1 {[%clk 0:00:57]}  Rg8 {[%clk 0:00:05]} 32. Re3 {[%clk 0:00:55]}  Qb2 {[%clk 0:00:04]} 33. Rg3 {[%clk 0:00:54]}  Rf8 {[%clk 0:00:04]} 34. Qe4 {[%clk 0:00:49]}  Qxa2 {[%clk 0:00:01]} 35. Rh3 {[%clk 0:00:46]}  Qf7 {[%clk 0:00:01]} 36. Qf5 {[%clk 0:00:45]}  Re8 {[%clk 0:00:02]} 37. Rhd3 {[%clk 0:00:42]}  Qe7 {[%clk 0:00:02]} 38. h4 {[%clk 0:00:40]}  a6 {[%clk 0:00:01]} 39. Rd7 {[%clk 0:00:40]}  Qe1+ {[%clk 0:00:01]} 40. Rxe1 {[%clk 0:00:40]}  Rxe1+ {[%clk 0:00:02]} 41. Kh2 {[%clk 0:00:40]} 1-0


[Site "https://www.chess.com"]

[Event "Titled Tuesday Blitz October 11 Early 2022"]
[White "Munkhgal, Gombosuren"]
[Black "Makhnev, Denis"]
[WhiteFideId "4901266"]
[BlackFideId "13707647"]
[WhiteElo "2576"]
[BlackElo "2486"]
[Result "0-1"]
[Round "10"]
[TimeControl "180+1"]
[Date "2022.10.11"]
[WhiteClock "0:00:01"]
[BlackClock "0:00:16"]

1. d4 {[%clk 0:03:00]}  Nf6 {[%clk 0:02:59]} 2. Bf4 {[%clk 0:03:00]}  d5 {[%clk 0:02:58]} 3. e3 {[%clk 0:03:00]}  e6 {[%clk 0:02:58]} 4. Nf3 {[%clk 0:03:00]}  c5 {[%clk 0:02:59]} 5. c3 {[%clk 0:03:00]}  Nc6 {[%clk 0:02:59]} 6. Nbd2 {[%clk 0:03:00]}  Nh5 {[%clk 0:02:59]} 7. Be5 {[%clk 0:03:00]}  f6 {[%clk 0:02:59]} 8. Bg3 {[%clk 0:03:00]}  g6 {[%clk 0:03:00]} 9. Bd3 {[%clk 0:03:00]}  cxd4 {[%clk 0:03:00]} 10. exd4 {[%clk 0:03:00]}  Bh6 {[%clk 0:02:59]} 11. O-O {[%clk 0:02:59]}  O-O {[%clk 0:02:59]} 12. Qc2 {[%clk 0:02:58]}  Kg7 {[%clk 0:02:25]} 13. Rae1 {[%clk 0:02:54]}  Nxg3 {[%clk 0:02:19]} 14. hxg3 {[%clk 0:02:54]}  Bd7 {[%clk 0:02:19]} 15. Kh2 {[%clk 0:02:53]}  Rc8 {[%clk 0:02:19]} 16. Qb1 {[%clk 0:02:51]}  Qc7 {[%clk 0:02:12]} 17. Nb3 {[%clk 0:02:22]}  b6 {[%clk 0:02:09]} 18. Rh1 {[%clk 0:02:21]}  e5 {[%clk 0:02:03]} 19. dxe5 {[%clk 0:02:14]}  fxe5 {[%clk 0:02:04]} 20. Ba6 {[%clk 0:02:01]}  Rce8 {[%clk 0:01:59]} 21. Kg1 {[%clk 0:02:01]}  e4 {[%clk 0:01:56]} 22. Nfd4 {[%clk 0:02:00]}  Ne5 {[%clk 0:01:54]} 23. Be2 {[%clk 0:01:57]}  a5 {[%clk 0:01:49]} 24. Qd1 {[%clk 0:01:55]}  a4 {[%clk 0:01:41]} 25. Na1 {[%clk 0:01:55]}  a3 {[%clk 0:01:41]} 26. bxa3 {[%clk 0:01:48]}  Qxc3 {[%clk 0:01:40]} 27. Nac2 {[%clk 0:01:49]}  Nd3 {[%clk 0:01:14]} 28. Rf1 {[%clk 0:01:45]}  Ba4 {[%clk 0:01:13]} 29. Bg4 {[%clk 0:01:33]}  Rf6 {[%clk 0:01:06]} 30. Qe2 {[%clk 0:01:28]}  Bg5 {[%clk 0:00:56]} 31. Nb3 {[%clk 0:01:23]}  Ne5 {[%clk 0:00:39]} 32. Ncd4 {[%clk 0:01:19]}  Qd3 {[%clk 0:00:35]} 33. Qxd3 {[%clk 0:00:59]}  Nxd3 {[%clk 0:00:33]} 34. Be2 {[%clk 0:00:51]}  Nxf2 {[%clk 0:00:33]} 35. Rh4 {[%clk 0:00:27]}  Bxh4 {[%clk 0:00:24]} 36. gxh4 {[%clk 0:00:28]}  Nd3 {[%clk 0:00:24]} 37. Rd1 {[%clk 0:00:27]}  Nc5 {[%clk 0:00:22]} 38. Rc1 {[%clk 0:00:26]}  Nd3 {[%clk 0:00:16]} 39. Rc7+ {[%clk 0:00:16]}  Rf7 {[%clk 0:00:16]} 40. Rc3 {[%clk 0:00:17]}  Nf4 {[%clk 0:00:16]} 41. Bg4 {[%clk 0:00:16]}  h5 {[%clk 0:00:15]} 42. Bd1 {[%clk 0:00:14]}  e3 {[%clk 0:00:16]} 43. Bf3 {[%clk 0:00:03]}  e2 {[%clk 0:00:15]} 44. Nxe2 {[%clk 0:00:01]}  Nxe2+ {[%clk 0:00:16]} 0-1


[Site "https://www.chess.com"]

[Event "Titled Tuesday Blitz October 11 Early 2022"]
[White "Omariev, Maksim"]
[Black "Makhmudov, Shukhrat"]
[WhiteFideId "4193423"]
[BlackFideId "14200775"]
[WhiteElo "2415"]
[BlackElo "2135"]
[Result "0-1"]
[Round "10"]
[TimeControl "180+1"]
[Date "2022.10.12"]
[WhiteClock "0:00:10"]
[BlackClock "0:01:10"]

1. e4 {[%clk 0:03:00]}  e5 {[%clk 0:02:59]} 2. Nf3 {[%clk 0:03:01]}  Nc6 {[%clk 0:03:00]} 3. Bb5 {[%clk 0:03:01]}  a6 {[%clk 0:02:59]} 4. Ba4 {[%clk 0:03:01]}  Nf6 {[%clk 0:02:59]} 5. O-O {[%clk 0:03:01]}  b5 {[%clk 0:03:00]} 6. Bb3 {[%clk 0:03:01]}  Be7 {[%clk 0:03:00]} 7. Re1 {[%clk 0:03:01]}  O-O {[%clk 0:03:00]} 8. h3 {[%clk 0:03:01]}  d6 {[%clk 0:02:59]} 9. c3 {[%clk 0:03:01]}  Na5 {[%clk 0:02:58]} 10. Bc2 {[%clk 0:03:01]}  c5 {[%clk 0:02:59]} 11. d4 {[%clk 0:03:02]}  Qc7 {[%clk 0:02:59]} 12. Nbd2 {[%clk 0:03:02]}  cxd4 {[%clk 0:02:58]} 13. cxd4 {[%clk 0:03:02]}  exd4 {[%clk 0:02:59]} 14. Nxd4 {[%clk 0:02:59]}  Rd8 {[%clk 0:02:59]} 15. b4 {[%clk 0:02:28]}  Nc4 {[%clk 0:02:48]} 16. Nxc4 {[%clk 0:02:25]}  bxc4 {[%clk 0:02:48]} 17. Bf4 {[%clk 0:02:16]}  Qb6 {[%clk 0:02:41]} 18. a3 {[%clk 0:01:28]}  d5 {[%clk 0:02:39]} 19. Nf5 {[%clk 0:01:19]}  Bxf5 {[%clk 0:02:34]} 20. exf5 {[%clk 0:01:20]}  Bf8 {[%clk 0:02:25]} 21. g4 {[%clk 0:00:43]}  d4 {[%clk 0:02:13]} 22. g5 {[%clk 0:00:43]}  Nd5 {[%clk 0:02:08]} 23. Be5 {[%clk 0:00:40]}  d3 {[%clk 0:02:07]} 24. Ba4 {[%clk 0:00:39]}  f6 {[%clk 0:01:56]} 25. gxf6 {[%clk 0:00:39]}  Nxf6 {[%clk 0:01:56]} 26. Qf3 {[%clk 0:00:34]}  Rac8 {[%clk 0:01:41]} 27. Kh1 {[%clk 0:00:22]}  Kh8 {[%clk 0:01:35]} 28. Rg1 {[%clk 0:00:20]}  Bd6 {[%clk 0:01:32]} 29. Bc3 {[%clk 0:00:18]}  Bb8 {[%clk 0:01:28]} 30. Rg5 {[%clk 0:00:11]}  Qd6 {[%clk 0:01:14]} 31. Rag1 {[%clk 0:00:10]}  Qh2# {[%clk 0:01:10]} 0-1


[Site "https://www.chess.com"]